bitfinex/quotes_SOLUSD_20250307
["timestamp","ask_amount","ask_price","bid_price","bid_amount"]
[1741313169872,28.75067466,141.03,141.02,82.1]
[1741313170175,82.0,141.11,141.03,18.64964886]
[1741313170336,28.75067466,141.06,141.04,0.14216157]
[1741313170535,82.0,141.11,141.04,82.24216157]
[1741313170765,28.75067466,141.05,141.04,82.24216157]
[1741313171680,28.75067466,141.05,141.02,82.13]
[1741313171984,28.75067466,141.03,141.02,82.27216157]
[1741313173251,28.75067466,141.04,141.03,0.14216157]
[1741313173551,28.75067466,141.05,141.03,0.14216157]
[1741313174058,28.75067466,141.04,141.03,312.0]
[1741313175077,28.75067466,141.04,141.03,312.14216157]
[1741313176860,28.75067466,141.04,141.03,312.0]
[1741313177061,28.75067466,141.04,141.02,0.17216157]
[1741313177262,28.75067466,141.03,141.02,0.17216157]
[1741313179157,28.75067466,141.03,141.02,0.03]
[1741313182782,28.75067466,141.04,141.02,0.17216157]
[1741313183371,28.78367466,141.05,141.02,0.17216157]
[1741313183561,28.78367466,141.05,141.02,394.27216157]
[1741313183756,0.033,141.05,141.04,0.14216157]
[1741313186187,0.033,141.05,141.04,26.024072]
[1741313186379,0.033,141.05,141.04,280.89364666]
[1741313186884,0.033,141.05,141.04,252.142972]
[1741313187071,0.033,141.05,141.04,564.142972]
[1741313188181,0.033,141.05,141.04,557.052872]
[1741313188383,0.033,141.05,141.04,312.0]
[1741313188589,0.033,141.05,141.04,312.14216157]
[1741313188781,0.033,141.05,141.04,338.024072]
[1741313189684,0.033,141.05,141.04,557.924072]
[1741313190489,0.033,141.05,141.04,550.833972]
[1741313191079,28.78367466,141.05,141.04,394.1]
[1741313191392,0.033,141.05,141.04,394.1]
[1741313191968,0.033,141.05,141.04,394.24216157]
[1741313192788,28.75067466,141.07,141.05,0.14216157]
[1741313193286,82.0,141.11,141.05,0.14216157]
[1741313193492,28.75067466,141.07,141.05,0.14216157]
[1741313193991,28.75067466,141.07,141.04,394.1]
[1741313194490,28.75067466,141.07,141.05,0.14216157]
[1741313194692,28.75067466,141.06,141.05,0.14216157]
[1741313194887,28.75067466,141.06,141.03,0.03]
[1741313195111,28.75067466,141.04,141.03,0.03]
[1741313195401,28.75067466,141.05,141.03,0.03]
[1741313196108,28.75067466,141.04,141.03,0.03]
[1741313196311,57.50134932,141.04,141.03,0.03]
[1741313196604,28.75067466,141.04,141.03,0.03]
[1741313196806,82.0,141.09,141.03,0.03]
[1741313196989,28.75067466,141.04,141.03,0.03]
[1741313197390,28.75067466,141.05,141.03,0.03]
[1741313197905,28.75067466,141.05,141.04,0.14216157]
[1741313201099,28.75067466,141.05,141.03,0.03]
[1741313201284,28.75067466,141.04,141.03,0.03]
[1741313204112,28.75067466,141.04,141.03,312.17216157]
[1741313204418,0.033,141.13,141.04,18.933972]
[1741313204704,28.75067466,141.1,141.04,270.22214666]
[1741313204874,28.75067466,141.1,141.06,0.14216157]
[1741313205070,28.75067466,141.11,141.06,0.14216157]
[1741313206092,28.75067466,141.11,141.05,0.14216157]
[1741313206297,0.033,141.13,141.07,18.933972]
[1741313206501,0.033,141.13,141.09,18.933972]
[1741313206705,28.78367466,141.13,141.11,0.28432314]
[1741313207009,28.75067466,141.12,141.11,0.14216157]
[1741313207496,28.75067466,141.12,141.11,312.14216157]
[1741313208276,0.033,141.13,141.12,0.14216157]
[1741313208894,0.033,141.13,141.12,101.033972]
[1741313209887,0.033,141.13,141.12,82.24216157]
[1741313210209,28.78367466,141.13,141.11,9.04]
[1741313210382,28.75067466,141.12,141.11,9.04]
[1741313210584,57.50134932,141.12,141.07,82.1]
[1741313210899,28.75067466,141.08,141.07,82.24216157]
[1741313211290,28.75067466,141.12,141.07,394.24216157]
[1741313211492,28.75067466,141.08,141.07,394.24216157]
[1741313211899,28.75067466,141.08,141.07,394.1]
[1741313212893,28.75067466,141.08,141.07,312.0]
[1741313213206,28.75067466,141.08,141.04,0.14216157]
[1741313213391,28.75067466,141.05,141.04,0.14216157]
[1741313213587,28.75067466,141.05,141.03,82.13]
[1741313213806,28.75067466,141.04,141.03,0.03]
[1741313214102,28.75067466,141.04,141.03,0.17216157]
[1741313214700,57.50134932,141.04,141.03,0.03]
[1741313215080,28.75067466,141.04,141.03,0.03]
[1741313216005,28.75067466,141.04,141.03,312.03]
[1741313218382,28.75067466,141.04,141.03,312.17216157]
[1741313218587,28.75067466,141.04,141.03,312.03]
[1741313218980,28.75067466,141.04,141.03,0.17216157]
[1741313219383,28.75067466,141.06,141.03,0.17216157]
[1741313219586,28.75067466,141.07,141.04,18.933972]
[1741313219798,28.75067466,141.07,141.04,101.033972]
[1741313220184,28.75067466,141.08,141.04,101.033972]
[1741313220406,110.78367466,141.12,141.04,101.033972]
[1741313220407,28.75067466,141.06,141.04,82.24216157]
[1741313220587,28.75067466,141.05,141.04,82.24216157]
[1741313221307,28.75067466,141.05,141.04,0.14216157]
[1741313221486,28.75067466,141.05,141.03,0.03]
[1741313221687,84.0,141.1,141.03,0.03]
[1741313221688,28.75067466,141.04,141.03,0.03]
[1741313221994,28.75067466,141.08,141.05,0.14216157]
[1741313222312,28.75067466,141.06,141.05,82.1]
[1741313222806,28.75067466,141.08,141.06,0.14216157]
[1741313222991,28.75067466,141.07,141.06,0.14216157]
[1741313223194,28.75067466,141.08,141.06,0.14216157]
[1741313224105,28.78367466,141.12,141.06,238.833972]
[1741313224314,0.033,141.12,141.08,0.14216157]
[1741313224695,28.75067466,141.11,141.08,18.933972]
[1741313224901,28.78367466,141.12,141.08,18.933972]
[1741313225796,28.78367466,141.12,141.11,0.14216157]
[1741313226296,0.033,141.12,141.11,82.24216157]
[1741313226497,0.033,141.12,141.11,238.833972]
[1741313226806,0.033,141.12,141.11,254.940572]
[1741313227422,0.033,141.12,141.11,247.853972]
[1741313227794,0.033,141.13,141.12,18.933972]
[1741313228007,0.033,141.13,141.12,55.34380388]
[1741313228399,0.033,141.13,141.12,275.24380388]
[1741313228719,28.75067466,141.21,141.13,0.14216157]
[1741313228894,28.75067466,141.21,141.15,0.14216157]
[1741313229300,28.75067466,141.22,141.21,0.14216157]
[1741313229607,41.31116793,141.28,141.22,18.79181043]
[1741313229608,28.75067466,141.25,141.22,18.79181043]
[1741313229816,28.75067466,141.26,141.23,0.14216157]
[1741313229992,28.75067466,141.25,141.23,0.14216157]
[1741313230194,28.75067466,141.25,141.19,171.238]
[1741313230195,28.75067466,141.24,141.17,91.12]
[1741313230394,28.75067466,141.19,141.17,91.12]
[1741313230614,28.75067466,141.18,141.17,91.12]
[1741313230808,28.75067466,141.18,141.17,91.26216157]
[1741313231217,28.75067466,141.18,141.17,9.02]
[1741313231554,28.75067466,141.18,141.14,219.9]
[1741313231737,11.84172083,141.27,141.14,219.9]
[1741313231946,28.75067466,141.2,141.16,0.28432314]
[1741313232119,28.75067466,141.21,141.18,0.14216157]
[1741313232317,28.75067466,141.2,141.18,82.24216157]
[1741313232820,28.75067466,141.2,141.19,312.14216157]
[1741313233139,28.75067466,141.2,141.18,82.1]
[1741313233446,28.75067466,141.19,141.18,82.24216157]
[1741313233739,28.75067466,141.19,141.14,6.5956]
[1741313233930,28.75067466,141.18,141.14,226.4956]
[1741313234445,28.75067466,141.18,141.15,0.14216157]
[1741313234816,28.75067466,141.19,141.17,0.14216157]
[1741313235017,28.75067466,141.19,141.17,82.24216157]
[1741313235417,6.5313,141.26,141.19,0.14216157]
[1741313235642,28.75067466,141.21,141.19,220.04216157]
[1741313236027,28.75067466,141.21,141.2,312.14216157]
[1741313236753,6.5313,141.26,141.21,0.14216157]
[1741313236951,6.5313,141.26,141.21,82.24216157]
[1741313237116,28.78367466,141.28,141.23,0.14216157]
[1741313237321,28.75067466,141.25,141.23,0.14216157]
[1741313237517,28.75067466,141.24,141.21,82.1]
[1741313237779,28.75067466,141.22,141.21,82.24216157]
[1741313238044,28.75067466,141.23,141.21,0.14216157]
[1741313238421,96.40664831,141.27,141.21,0.14216157]
[1741313238627,28.78367466,141.28,141.23,0.14216157]
[1741313238833,28.75067466,141.24,141.23,0.14216157]
[1741313239033,28.75067466,141.25,141.23,82.24216157]
[1741313239236,0.033,141.28,141.23,82.24216157]
[1741313239433,28.75067466,141.26,141.23,220.04216157]
[1741313239628,0.033,141.28,141.25,0.14216157]
[1741313239834,28.75067466,141.27,141.25,0.14216157]
[1741313240127,28.75067466,141.27,141.26,312.14216157]
[1741313240339,28.75067466,141.27,141.26,394.24216157]
[1741313241527,20.28694107,141.27,141.26,82.24216157]
[1741313241722,28.75067466,141.27,141.22,250.82]
[1741313241940,28.78367466,141.28,141.22,250.82]
[1741313242143,28.75067466,141.23,141.22,250.82]
[1741313242557,28.75067466,141.23,141.22,250.96216157]
[1741313243039,28.75067466,141.23,141.22,168.72]
[1741313243449,28.75067466,141.23,141.21,0.14216157]
[1741313243640,28.75067466,141.22,141.21,0.14216157]
[1741313243845,28.75067466,141.22,141.18,82.1]
[1741313244030,28.75067466,141.19,141.18,82.1]
[1741313244232,28.75067466,141.19,141.16,0.14216157]
[1741313244559,28.75067466,141.17,141.16,394.1]
[1741313244733,28.75067466,141.17,141.16,394.24216157]
[1741313247846,28.75067466,141.17,141.16,312.14216157]
[1741313250460,28.75067466,141.17,141.16,0.14216157]
[1741313252064,28.75067466,141.17,141.15,0.14216157]
[1741313252249,28.75067466,141.16,141.15,0.14216157]
[1741313252843,28.75067466,141.16,141.14,168.68]
[1741313253046,28.75067466,141.2,141.14,168.68]
[1741313253047,28.75067466,141.15,141.14,168.68]
[1741313253549,28.75067466,141.15,141.14,480.68]
[1741313253763,28.75067466,141.15,141.14,168.82216157]
[1741313254643,28.75067466,141.15,141.13,0.03]
[1741313254843,28.75067466,141.14,141.13,0.03]
[1741313255248,63.60183287,141.14,141.07,82.1]
[1741313255443,28.75067466,141.09,141.07,82.1]
[1741313255761,28.75067466,141.11,141.08,18.933972]
[1741313256061,28.75067466,141.11,141.08,238.833972]
[1741313256265,28.75067466,141.12,141.08,238.833972]
[1741313256457,28.75067466,141.11,141.08,238.833972]
[1741313256841,82.0,141.18,141.11,0.14216157]
[1741313257048,28.75067466,141.12,141.1,312.0]
[1741313257248,28.75067466,141.11,141.1,312.14216157]
[1741313257455,28.75067466,141.12,141.1,312.14216157]
[1741313257651,28.75067466,141.13,141.11,0.14216157]
[1741313257847,28.75067466,141.13,141.09,0.28432314]
[1741313258248,28.75067466,141.15,141.09,245.921472]
[1741313258453,35.20037466,141.2,141.11,18.933972]
[1741313258454,28.75067466,141.16,141.11,18.933972]
[1741313258776,28.75067466,141.16,141.13,18.933972]
[1741313258945,28.75067466,141.16,141.13,238.833972]
[1741313259141,28.75067466,141.2,141.13,220.04216157]
[1741313259364,28.75067466,141.16,141.13,82.24216157]
[1741313259678,28.75067466,141.15,141.13,220.04216157]
[1741313260380,28.75067466,141.14,141.13,220.04216157]
[1741313260678,28.75067466,141.14,141.13,312.14216157]
[1741313262355,28.75067466,141.14,141.13,101.033972]
[1741313262562,28.75067466,141.16,141.13,108.119572]
[1741313262882,28.75067466,141.17,141.15,0.14216157]
[1741313263082,28.75067466,141.18,141.17,0.14216157]
[1741313263256,28.75067466,141.19,141.18,18.933972]
[1741313264060,28.75067466,141.19,141.18,82.24216157]
[1741313264453,28.75067466,141.19,141.14,222.4335]
[1741313264785,28.75067466,141.15,141.14,82.24216157]
[1741313265300,28.75067466,141.15,141.12,91.08]
[1741313265493,28.75067466,141.13,141.12,394.1]
[1741313265861,28.75067466,141.13,141.12,394.24216157]
[1741313266571,28.72247992,141.13,141.12,394.24216157]
[1741313266754,28.72247992,141.13,141.12,394.27216157]
[1741313267255,17.95152261,141.13,141.12,394.27216157]
[1741313268453,82.0,141.19,141.13,0.14216157]
[1741313268655,17.94819306,141.15,141.13,82.24216157]
[1741313268956,2.5123,141.2,141.13,82.24216157]
[1741313269171,28.71718471,141.14,141.13,82.24216157]
[1741313271686,28.71718471,141.14,141.13,394.24216157]
[1741313272276,28.71718471,141.15,141.13,101.033972]
[1741313272479,28.71718471,141.16,141.15,0.14216157]
[1741313272874,28.71718471,141.17,141.15,82.24216157]
[1741313273077,28.71718471,141.18,141.15,220.04216157]
[1741313273676,28.71718471,141.19,141.17,0.14216157]
[1741313274081,28.71718471,141.19,141.18,18.933972]
[1741313274294,28.71718471,141.19,141.18,238.833972]
[1741313274463,28.71718471,141.19,141.18,82.24216157]
[1741313275295,28.71718471,141.19,141.18,394.24216157]
[1741313275488,28.71718471,141.19,141.18,394.1]
[1741313275783,28.71718471,141.19,141.18,82.1]
[1741313276191,28.71718471,141.19,141.14,146.76]
[1741313276192,28.71718471,141.19,141.15,0.14216157]
[1741313276378,28.71718471,141.16,141.14,82.1]
[1741313276578,28.71718471,141.15,141.12,219.93]
[1741313276881,28.71718471,141.13,141.12,220.07216157]
[1741313277073,28.71718471,141.13,141.12,82.27216157]
[1741313277275,28.71718471,141.14,141.13,0.14216157]
[1741313277476,28.71718471,141.14,141.13,82.24216157]
[1741313278710,28.71718471,141.14,141.13,394.1]
[1741313279002,28.71718471,141.14,141.13,394.24216157]
[1741313279372,28.71718471,141.14,141.13,82.24216157]
[1741313280336,0.033,141.15,141.14,0.14216157]
[1741313280616,8.19159441,141.25,141.14,0.14216157]
[1741313280617,11.03084415,141.31,141.21,2.0]
[1741313280892,11.03084415,141.3,141.28,18.933972]
[1741313281087,11.03084415,141.3,141.28,247.793972]
[1741313281288,39.74802886,141.3,141.28,109.993972]
[1741313281484,30.72913871,141.29,141.28,82.24216157]
[1741313281708,30.72913871,141.29,141.25,18.933972]
[1741313281879,28.71718471,141.26,141.24,146.76]
[1741313282078,28.71718471,141.25,141.22,388.64]
[1741313282276,28.71718471,141.23,141.22,312.0]
[1741313283215,28.71718471,141.23,141.22,312.14216157]
[1741313283595,28.71718471,141.24,141.23,0.14216157]
[1741313283787,28.71718471,141.25,141.23,0.14216157]
[1741313284129,28.71718471,141.24,141.23,0.14216157]
[1741313284428,28.71718471,141.24,141.22,449.8]
[1741313284595,28.71718471,141.23,141.2,137.8]
[1741313284797,28.71718471,141.21,141.18,219.9]
[1741313284996,28.71718471,141.19,141.18,0.14216157]
[1741313285238,28.71718471,141.2,141.18,0.14216157]
[1741313285440,28.71718471,141.21,141.18,0.28432314]
[1741313285597,28.71718471,141.22,141.2,0.14216157]
[1741313285793,28.71718471,141.28,141.2,0.28432314]
[1741313285992,28.71718471,141.25,141.22,0.28432314]
[1741313286221,28.71718471,141.23,141.22,219.9]
[1741313286438,28.71718471,141.23,141.22,220.04216157]
[1741313287310,28.71718471,141.23,141.19,82.1]
[1741313287626,28.71718471,141.2,141.19,312.14216157]
[1741313288208,28.71718471,141.21,141.19,312.14216157]
[1741313288619,28.71718471,141.21,141.2,0.14216157]
[1741313289201,28.71718471,141.21,141.17,137.8]
[1741313289401,28.71718471,141.19,141.18,0.14216157]
[1741313289925,28.71718471,141.19,141.16,82.1]
[1741313290496,28.702605,141.17,141.16,82.1]
[1741313291016,17.94033525,141.17,141.16,82.24216157]
[1741313291217,17.94033525,141.17,141.16,82.1]
[1741313291395,82.0,141.26,141.16,82.1]
[1741313291607,17.94033525,141.2,141.17,0.14216157]
[1741313291926,17.94033525,141.2,141.17,82.24216157]
[1741313292137,17.94033525,141.2,141.17,394.24216157]
[1741313292507,82.0,141.26,141.17,394.24216157]
[1741313292705,17.93305965,141.19,141.17,394.24216157]
[1741313292927,17.93305965,141.18,141.17,394.1]
[1741313293118,17.93305965,141.18,141.14,250.84]
[1741313293323,17.93305965,141.2,141.15,18.64964886]
[1741313293520,28.69308433,141.2,141.16,0.14216157]
[1741313293722,18.79181043,141.24,141.16,0.14216157]
[1741313293923,28.69308433,141.18,141.15,0.14216157]
[1741313294236,28.69308433,141.19,141.15,82.24216157]
[1741313294922,28.69308433,141.18,141.15,82.24216157]
[1741313295123,28.69308433,141.18,141.15,82.1]
[1741313295317,28.69308433,141.17,141.15,82.1]
[1741313295724,28.69308433,141.16,141.15,82.1]
[1741313295922,28.69308433,141.16,141.15,82.24216157]
[1741313296337,6.0693,141.23,141.15,82.24216157]
[1741313296338,28.69308433,141.17,141.15,82.24216157]
[1741313296635,28.69308433,141.2,141.16,0.14216157]
[1741313296825,28.69308433,141.17,141.16,0.14216157]
[1741313297020,28.69308433,141.17,141.14,250.84]
[1741313297242,28.69308433,141.15,141.14,82.1]
[1741313297419,28.69308433,141.15,141.13,0.03]
[1741313297627,28.69308433,141.14,141.13,0.17216157]
[1741313297814,28.69308433,141.14,141.13,0.03]
[1741313298020,28.69308433,141.14,141.12,79.37279837]
[1741313298235,18.64964886,141.18,141.12,79.37279837]
[1741313298236,28.69308433,141.13,141.12,79.37279837]
[1741313298434,28.69308433,141.13,141.09,0.14216157]
[1741313298615,28.69308433,141.1,141.08,79.37279837]
[1741313298816,28.69308433,141.09,141.08,79.37279837]
[1741313299118,28.69308433,141.09,141.08,79.51495994]
[1741313299338,82.0,141.16,141.09,0.14216157]
[1741313299339,28.69308433,141.1,141.09,0.14216157]
[1741313299536,28.69308433,141.1,141.08,79.37279837]
[1741313299915,82.0,141.16,141.09,0.14216157]
[1741313300117,87.9936883,141.16,141.09,0.14216157]
[1741313301235,28.69308433,141.13,141.09,0.14216157]
[1741313301441,28.69308433,141.13,141.09,79.51495994]
[1741313301815,28.69308433,141.12,141.09,79.51495994]
[1741313302018,28.69308433,141.11,141.09,79.51495994]
[1741313302220,28.69308433,141.1,141.09,79.37279837]
[1741313302416,28.69308433,141.1,141.09,0.14216157]
[1741313302635,28.69308433,141.11,141.09,0.14216157]
[1741313302851,28.69308433,141.12,141.09,0.14216157]
[1741313303048,28.69308433,141.13,141.09,0.14216157]
[1741313303343,28.69308433,141.13,141.09,79.51495994]
[1741313303727,28.69308433,141.14,141.09,79.51495994]
[1741313303929,82.0,141.22,141.12,0.14216157]
[1741313304232,28.69308433,141.18,141.14,312.0]
[1741313304430,28.69308433,141.17,141.15,0.14216157]
[1741313304846,28.72608433,141.17,141.15,0.14216157]
[1741313305424,28.69308433,141.16,141.15,0.14216157]
[1741313305625,28.69308433,141.16,141.14,79.37279837]
[1741313305847,0.033,141.17,141.14,79.51495994]
[1741313305848,28.69308433,141.15,141.14,79.51495994]
[1741313306032,28.69308433,141.15,141.14,0.14216157]
[1741313306229,28.69308433,141.15,141.13,79.37279837]
[1741313306443,0.033,141.17,141.14,0.14216157]
[1741313306640,28.69308433,141.15,141.14,0.14216157]
[1741313307040,28.69308433,141.15,141.13,79.37279837]
[1741313307238,28.69308433,141.14,141.13,79.51495994]
[1741313307937,28.69308433,141.15,141.13,79.51495994]
[1741313309449,28.69308433,141.14,141.13,79.51495994]
[1741313309653,0.033,141.17,141.13,79.51495994]
[1741313309837,28.72608433,141.17,141.13,79.51495994]
[1741313310151,28.69308433,141.16,141.13,79.51495994]
[1741313310827,28.69308433,141.15,141.13,79.37279837]
[1741313311028,28.69308433,141.14,141.13,79.51495994]
[1741313311327,0.033,141.17,141.13,79.37279837]
[1741313311328,28.69308433,141.15,141.13,79.37279837]
[1741313311540,28.69308433,141.15,141.14,0.14216157]
[1741313311853,0.033,141.17,141.13,79.37279837]
[1741313312042,0.033,141.17,141.14,0.14216157]
[1741313312228,28.69308433,141.16,141.14,0.14216157]
[1741313312733,28.72608433,141.17,141.14,0.14216157]
[1741313312935,0.033,141.17,141.14,79.51495994]
[1741313313739,0.033,141.17,141.16,0.14216157]
[1741313313923,0.033,141.17,141.16,245.02677037]
[1741313315034,0.033,141.17,141.16,400.43495994]
[1741313316435,0.033,141.17,141.16,407.66122151]
[1741313316634,0.033,141.17,141.16,592.8039547]
[1741313316825,0.033,141.17,141.16,595.2687547]
[1741313317250,0.033,141.17,141.16,566.57567037]
[1741313317832,0.033,141.17,141.16,595.2687547]
[1741313318150,0.033,141.17,141.16,566.57567037]
[1741313318762,0.033,141.17,141.16,595.2687547]
[1741313319055,0.033,141.17,141.16,566.57567037]
[1741313319553,0.033,141.17,141.16,595.2687547]
[1741313320852,28.69308433,141.26,141.18,0.14216157]
[1741313321034,28.69308433,141.26,141.2,28.8352459]
[1741313321742,28.69308433,141.26,141.22,7.22286157]
[1741313321937,0.033,141.27,141.24,0.14216157]
[1741313322136,0.033,141.27,141.24,217.31495994]
[1741313322340,0.033,141.27,141.26,18.933972]
[1741313322544,0.033,141.27,141.26,236.10677037]
[1741313322937,0.033,141.27,141.26,217.31495994]
[1741313323144,28.72608433,141.27,141.26,79.51495994]
[1741313324360,28.72608433,141.27,141.26,391.51495994]
[1741313324557,28.72608433,141.27,141.25,168.68]
[1741313324751,28.69308433,141.26,141.22,79.37279837]
[1741313324941,28.69308433,141.23,141.19,88.29279837]
[1741313325141,28.69308433,141.21,141.2,0.14216157]
[1741313325754,28.69308433,141.22,141.19,217.17279837]
[1741313326577,28.69308433,141.2,141.18,8.92]
[1741313326746,28.69308433,141.19,141.18,8.92]
[1741313326940,28.69308433,141.19,141.18,9.06216157]
[1741313327563,28.69308433,141.19,141.18,320.92]
[1741313327957,28.69308433,141.19,141.17,248.01279837]
[1741313328260,0.033,141.21,141.18,0.14216157]
[1741313328457,28.69308433,141.19,141.18,0.14216157]
[1741313330444,28.69308433,141.19,141.17,168.64]
[1741313330657,28.69308433,141.18,141.17,168.64]
[1741313330854,28.69308433,141.18,141.14,217.17279837]
[1741313331053,28.69308433,141.15,141.14,79.37279837]
[1741313331248,28.69308433,141.15,141.12,391.40279837]
[1741313331453,28.69308433,141.13,141.12,79.40279837]
[1741313332941,28.69308433,141.13,141.12,0.03]
[1741313333144,28.69308433,141.14,141.12,0.03]
[1741313333671,28.69308433,141.13,141.12,0.03]
[1741313334047,6.04329077,141.17,141.12,0.03]
[1741313334261,28.69308433,141.13,141.12,0.03]
[1741313334568,28.69308433,141.15,141.12,0.17216157]
[1741313335071,28.69308433,141.15,141.14,0.14216157]
[1741313335444,15.07351564,141.19,141.14,0.14216157]
[1741313335643,28.69308433,141.15,141.14,0.14216157]
[1741313335843,28.69308433,141.15,141.13,79.37279837]
[1741313336744,15.07351564,141.19,141.13,79.37279837]
[1741313336946,15.07351564,141.19,141.13,79.51495994]
[1741313336947,28.69308433,141.15,141.13,79.51495994]
[1741313337163,15.07351564,141.19,141.14,0.14216157]
[1741313337361,28.69308433,141.15,141.14,0.14216157]
[1741313337901,28.69308433,141.15,141.14,312.14216157]
[1741313338045,15.07351564,141.19,141.14,312.14216157]
[1741313338381,28.69308433,141.16,141.14,312.14216157]
[1741313338584,28.69308433,141.16,141.14,391.51495994]
[1741313338945,28.69308433,141.15,141.14,391.51495994]
[1741313340571,28.69308433,141.16,141.14,391.51495994]
[1741313341071,28.69308433,141.15,141.14,391.51495994]
[1741313341957,28.69308433,141.15,141.14,79.37279837]
[1741313342563,28.7189437,141.15,141.14,79.37279837]
[1741313343369,28.7189437,141.15,141.13,0.03]
[1741313343547,28.7189437,141.14,141.13,0.03]
[1741313343752,17.95626504,141.14,141.13,0.03]
[1741313344661,17.96071509,141.14,141.13,0.03]
[1741313345181,28.7326862,141.14,141.13,0.03]
[1741313346874,28.7326862,141.14,141.13,0.17216157]
[1741313347186,28.7326862,141.16,141.13,18.82181043]
[1741313347394,6.02603011,141.19,141.14,0.28432314]
[1741313347603,28.7326862,141.19,141.16,0.14216157]
[1741313348103,28.7326862,141.18,141.16,312.14216157]
[1741313348465,20.64134489,141.18,141.16,391.51495994]
[1741313348803,0.033,141.21,141.16,391.51495994]
[1741313348962,28.7326862,141.19,141.16,391.51495994]
[1741313349162,0.033,141.21,141.16,391.51495994]
[1741313349368,0.033,141.21,141.18,0.14216157]
[1741313349567,28.7656862,141.21,141.18,79.51495994]
[1741313349786,28.7326862,141.19,141.18,79.37279837]
[1741313349977,28.7326862,141.19,141.13,248.14279837]
[1741313350178,28.7326862,141.15,141.14,0.14216157]
[1741313350381,0.033,141.21,141.14,79.51495994]
[1741313350382,28.7326862,141.17,141.14,79.51495994]
[1741313350679,0.033,141.21,141.16,0.14216157]
[1741313350882,0.033,141.21,141.16,217.17279837]
[1741313350883,28.7326862,141.2,141.16,217.17279837]
[1741313351186,28.7326862,141.18,141.16,217.17279837]
[1741313351386,28.7326862,141.18,141.16,79.37279837]
[1741313351589,0.033,141.21,141.17,0.14216157]
[1741313351793,28.7326862,141.18,141.16,79.37279837]
[1741313352098,90.796,141.2,141.13,248.14279837]
[1741313352398,28.7326862,141.14,141.13,248.28495994]
[1741313352776,28.7326862,141.14,141.13,79.54495994]
[1741313353282,28.7326862,141.14,141.13,235.9946088]
[1741313353478,28.7326862,141.18,141.14,18.79181043]
[1741313353674,28.7326862,141.18,141.14,235.9646088]
[1741313353875,0.033,141.21,141.16,0.14216157]
[1741313354070,0.033,141.21,141.18,0.28432314]
[1741313354675,0.033,141.21,141.2,0.14216157]
[1741313354882,0.033,141.21,141.2,79.51495994]
[1741313355481,0.033,141.21,141.2,236.10677037]
[1741313355675,0.033,141.21,141.2,264.83945657]
[1741313356577,0.033,141.21,141.2,576.83945657]
[1741313356788,0.033,141.21,141.2,583.92155657]
[1741313357497,0.033,141.27,141.24,6.78016157]
[1741313357684,0.033,141.32,141.29,18.933972]
[1741313357881,11.03084415,141.41,141.33,18.933972]
[1741313358090,11.03084415,141.41,141.35,47.6666582]
[1741313358300,28.7326862,141.38,141.35,18.933972]
[1741313358483,28.7326862,141.38,141.35,217.31495994]
[1741313358689,28.7326862,141.37,141.35,217.31495994]
[1741313358888,28.7326862,141.38,141.35,217.31495994]
[1741313359092,28.7326862,141.4,141.36,18.64964886]
[1741313359282,11.03084415,141.41,141.37,0.14216157]
[1741313359491,28.7326862,141.4,141.37,0.14216157]
[1741313360684,28.7326862,141.4,141.39,312.0]
[1741313361485,28.7326862,141.41,141.4,0.14216157]
[1741313362182,28.7326862,141.41,141.38,0.28432314]
[1741313362701,28.7326862,141.41,141.38,0.14216157]
[1741313363005,28.7326862,141.39,141.38,217.31495994]
[1741313363321,28.7326862,141.39,141.38,79.37279837]
[1741313363705,28.7326862,141.39,141.34,226.05279837]
[1741313363892,28.7326862,141.35,141.34,226.05279837]
[1741313364087,28.7326862,141.35,141.34,88.25279837]
[1741313364395,28.7326862,141.35,141.34,88.39495994]
[1741313364605,28.7326862,141.35,141.34,79.51495994]
[1741313364916,28.7326862,141.35,141.34,79.37279837]
[1741313365278,28.7326862,141.35,141.34,79.51495994]
[1741313365794,9.0492,141.4,141.34,79.51495994]
[1741313366097,28.7326862,141.35,141.34,79.51495994]
[1741313366498,0.033,141.41,141.35,0.14216157]
[1741313366688,28.7326862,141.37,141.35,79.51495994]
[1741313366887,28.7326862,141.36,141.35,79.51495994]
[1741313368100,0.033,141.41,141.35,79.51495994]
[1741313368291,28.7326862,141.36,141.35,79.51495994]
[1741313369392,28.7326862,141.37,141.35,217.31495994]
[1741313369598,28.7326862,141.38,141.35,217.31495994]
[1741313369793,28.7326862,141.37,141.35,529.31495994]
[1741313369993,0.033,141.41,141.35,236.10677037]